[Event "44th Chess Olympiad Open 2022"]
[Site "Chennai"]
[Date "2022.08.05"]
[Round "7.83"]
[White "Nxumalo, Vuyo"]
[Black "Adeshole Beckley, Brian"]
[Result "1-0"]
[WhiteElo "1493"]
[BlackElo "1590"]
[Annotator "NA RC"]
[PlyCount "60"]
[EventDate "2022.??.??"]
[TimeControl "60"]

1. e4 {[%emt 0:00:30]} e6 {[%emt 0:00:24]} 2. Nf3 {[%emt 0:00:54]} d5 {[%emt 0:
00:00]} 3. exd5 {[%emt 0:00:08]} exd5 {[%emt 0:00:11]} 4. d4 {[%emt 0:00:09]}
Bd6 {[%emt 0:01:31]} 5. Bd3 {[%emt 0:01:47]} Ne7 {[%emt 0:00:13]} 6. O-O {
[%emt 0:02:16]} O-O {[%emt 0:00:19]} 7. h3 {[%emt 0:00:19]} Bf5 {[%emt 0:00:18]
} 8. Re1 {[%emt 0:01:26]} Bg6 {[%emt 0:00:34]} 9. Bg5 {[%emt 0:02:11]} f6 {
[%emt 0:00:14]} 10. Be3 {[%emt 0:01:25]} Nd7 {[%emt 0:01:06]} 11. Nh4 {[%emt 0:
00:00]} c6 {[%emt 0:01:09]} 12. Nxg6 {[%emt 0:00:25]} Nxg6 {[%emt 0:00:43]} 13.
Qg4 {[%emt 0:00:34]} Qe8 {[%emt 0:00:55]} 14. Nd2 {[%emt 0:00:36]} Qf7 {
[%emt 0:00:45]} 15. Bf5 {[%emt 0:00:42]} Rae8 {[%emt 0:05:49]} 16. Bxd7 {
[%emt 0:03:25]} f5 {[%emt 0:00:04]} 17. Bxe8 {[%emt 0:02:50]} Rxe8 {[%emt 0:00:
00]} 18. Qh5 {[%emt 0:01:48]} f4 {[%emt 0:01:00]} 19. Bxf4 {[%emt 0:00:11]}
Rxe1+ {[%emt 0:00:53]} 20. Rxe1 {[%emt 0:00:19]} Qxf4 {[%emt 0:00:29]} 21. Nf3
{[%emt 0:00:48]} Nf8 {[%emt 0:06:52]} 22. g3 {[%emt 0:09:26]} Qf6 {[%emt 0:00:
00]} 23. Kg2 {[%emt 0:00:44]} g6 {[%emt 0:02:47]} 24. Qg4 {[%emt 0:00:14]} h5 {
[%emt 0:05:42]} 25. Qg5 {[%emt 0:01:11]} Kg7 {[%emt 0:00:52]} 26. h4 {[%emt 0:
00:00]} Nh7 {[%emt 0:00:36]} 27. Qxf6+ {[%emt 0:00:23]} Nxf6 {[%emt 0:00:10]}
28. Ng5 {[%emt 0:00:24]} b6 {[%emt 0:02:13]} 29. Re6 {[%emt 0:00:27]} Bf8 {
[%emt 0:03:22]} 30. Rxc6 {[%emt 0:01:00]} Be7 {[%emt 0:05:48]} 1-0

[Event "44th Chess Olympiad Open 2022"]
[Site "Chennai"]
[Date "2022.08.05"]
[Round "7.84"]
[White "Tan, Santiago Jr"]
[Black "Nevska, Gerda"]
[Result "1-0"]
[WhiteElo "1872"]
[BlackElo "1840"]
[Annotator "NA RC"]
[PlyCount "93"]
[EventDate "2022.??.??"]
[TimeControl "60"]

1. e4 {[%emt 0:00:05]} g6 {[%emt 0:00:09]} 2. d4 {[%emt 0:00:13]} Bg7 {[%emt 0:
00:00]} 3. Bc4 {[%emt 0:00:56]} d6 {[%emt 0:04:53]} 4. Nf3 {[%emt 0:03:02]} e6
{[%emt 0:03:47]} 5. O-O {[%emt 0:02:01]} Ne7 {[%emt 0:01:04]} 6. c3 {[%emt 0:
00:00]} Nd7 {[%emt 0:01:59]} 7. Bg5 {[%emt 0:02:23]} h6 {[%emt 0:02:24]} 8. Bh4
{[%emt 0:01:34]} O-O {[%emt 0:00:11]} 9. Nbd2 {[%emt 0:01:15]} Qe8 {[%emt 0:00:
00]} 10. Re1 {[%emt 0:05:59]} a6 {[%emt 0:01:18]} 11. h3 {[%emt 0:00:32]} b5 {
[%emt 0:00:43]} 12. Bb3 {[%emt 0:00:45]} Bb7 {[%emt 0:02:31]} 13. Rc1 {[%emt 0:
00:00]} c5 {[%emt 0:07:23]} 14. Bg3 {[%emt 0:07:40]} c4 {[%emt 0:03:06]} 15.
Bc2 {[%emt 0:00:06]} e5 {[%emt 0:03:53]} 16. Nf1 {[%emt 0:02:38]} f5 {[%emt 0:
00:00]} 17. exf5 {[%emt 0:05:47]} Nxf5 {[%emt 0:00:35]} 18. dxe5 {[%emt 0:00:
00]} dxe5 {[%emt 0:00:44]} 19. Qe2 {[%emt 0:00:44]} Nxg3 {[%emt 0:01:07]} 20.
fxg3 {[%emt 0:01:30]} Qe6 {[%emt 0:01:50]} 21. N1h2 {[%emt 0:02:00]} Rae8 {
[%emt 0:01:03]} 22. Rf1 {[%emt 0:09:14]} Nc5 {[%emt 0:02:43]} 23. Qe3 {[%emt 0:
00:00]} Qc6 {[%emt 0:01:53]} 24. Rcd1 {[%emt 0:05:18]} Nd3 {[%emt 0:08:38]} 25.
b3 {[%emt 0:08:27]} Re6 {[%emt 0:13:09]} 26. Bxd3 {[%emt 0:02:51]} cxd3 {
[%emt 0:00:13]} 27. Rxd3 {[%emt 0:00:43]} e4 {[%emt 0:03:29]} 28. Nd4 {[%emt 0:
00:00]} Rxf1+ {[%emt 0:00:20]} 29. Nxf1 {[%emt 0:00:15]} exd3 {[%emt 0:00:09]}
30. Qxe6+ {[%emt 0:00:31]} Qxe6 {[%emt 0:00:12]} 31. Nxe6 {[%emt 0:00:10]} Bxc3
{[%emt 0:00:13]} 32. Kf2 {[%emt 0:06:49]} b4 {[%emt 0:13:23]} 33. Ne3 {[%emt 0:
00:00]} a5 {[%emt 0:04:00]} 34. Nc5 {[%emt 0:00:32]} Bc6 {[%emt 0:05:06]} 35.
Nxd3 {[%emt 0:00:17]} Bd4 {[%emt 0:00:08]} 36. Ne1 {[%emt 0:00:24]} Be4 {
[%emt 0:00:18]} 37. Ke2 {[%emt 0:01:23]} Be5 {[%emt 0:02:01]} 38. Nc4 {[%emt 0:
00:00]} Bc7 {[%emt 0:01:05]} 39. Nd2 {[%emt 0:00:19]} Bd5 {[%emt 0:00:43]} 40.
g4 {[%emt 0:00:45]} Kf7 {[%emt 0:00:17]} 41. Nef3 {[%emt 0:30:17]} Ke6 {
[%emt 0:32:05]} 42. h4 {[%emt 0:01:04]} Bb7 {[%emt 0:00:00]} 43. Ke3 {[%emt 0:
00:00]} Kd5 {[%emt 0:00:00]} 44. Nc4 {[%emt 0:00:00]} Ba6 {[%emt 0:00:00]} 45.
Kd3 {[%emt 0:00:00]} Bc8 {[%emt 0:00:00]} 46. Nd4 {[%emt 0:00:00]} Bg3 {
[%emt 0:00:00]} 47. Nb6+ {[%emt 0:00:00]} 1-0

[Event "44th Chess Olympiad Open 2022"]
[Site "Chennai"]
[Date "2022.08.05"]
[Round "7.84"]
[White "Brookfield, Toby"]
[Black "Salvadora, Angelo"]
[Result "1-0"]
[WhiteElo "1815"]
[BlackElo "1711"]
[Annotator "NA RC"]
[PlyCount "55"]
[EventDate "2022.??.??"]
[TimeControl "60"]

1. e4 {[%emt 0:00:04]} e5 {[%emt 0:00:14]} 2. f4 {[%emt 0:00:14]} exf4 {
[%emt 0:04:41]} 3. Bc4 {[%emt 0:00:17]} Qh4+ {[%emt 0:03:19]} 4. Kf1 {[%emt 0:
00:00]} Bc5 {[%emt 0:01:32]} 5. d4 {[%emt 0:00:40]} Bb6 {[%emt 0:09:07]} 6. Nf3
{[%emt 0:01:04]} Qf6 {[%emt 0:02:40]} 7. Nc3 {[%emt 0:03:53]} Ne7 {[%emt 0:00:
00]} 8. Ne2 {[%emt 0:09:46]} Ng6 {[%emt 0:01:37]} 9. Qd3 {[%emt 0:04:40]} d6 {
[%emt 0:02:10]} 10. h4 {[%emt 0:07:27]} h5 {[%emt 0:03:23]} 11. c3 {[%emt 0:00:
00]} Nc6 {[%emt 0:01:30]} 12. g3 {[%emt 0:02:15]} Na5 {[%emt 0:06:41]} 13. Bxf4
{[%emt 0:12:42]} Bg4 {[%emt 0:08:54]} 14. e5 {[%emt 0:09:21]} dxe5 {[%emt 0:00:
00]} 15. dxe5 {[%emt 0:01:12]} Qc6 {[%emt 0:03:12]} 16. Bb5 {[%emt 0:02:37]}
Bxf3 {[%emt 0:00:21]} 17. Bxc6+ {[%emt 0:00:59]} Bxc6 {[%emt 0:00:09]} 18. Rh2
{[%emt 0:01:41]} Rd8 {[%emt 0:00:50]} 19. Nd4 {[%emt 0:01:11]} a6 {[%emt 0:00:
00]} 20. Qf5 {[%emt 0:03:31]} Nxf4 {[%emt 0:03:57]} 21. gxf4 {[%emt 0:02:04]}
Nc4 {[%emt 0:01:04]} 22. Re1 {[%emt 0:01:59]} Bxd4 {[%emt 0:04:42]} 23. cxd4 {
[%emt 0:00:54]} Bb5 {[%emt 0:00:13]} 24. Kg1 {[%emt 0:01:22]} Rh6 {[%emt 0:00:
00]} 25. Rg2 {[%emt 0:06:23]} Bd7 {[%emt 0:01:40]} 26. Qg5 {[%emt 0:01:41]} Rh7
{[%emt 0:04:22]} 27. e6 {[%emt 0:00:21]} Bxe6 {[%emt 0:10:08]} 28. Rxe6+ {
[%emt 0:03:29]} 1-0

[Event "44th Chess Olympiad Open 2022"]
[Site "Chennai"]
[Date "2022.08.05"]
[Round "7.85"]
[White "Charles, Cleophas"]
[Black "Smith, Michael A"]
[Result "0-1"]
[WhiteElo "1593"]
[BlackElo "1840"]
[Annotator "NA RC"]
[PlyCount "92"]
[EventDate "2022.??.??"]
[TimeControl "60"]

1. e4 {[%emt 0:00:08]} d6 {[%emt 0:00:27]} 2. d4 {[%emt 0:00:20]} e5 {[%emt 0:
00:00]} 3. dxe5 {[%emt 0:00:19]} dxe5 {[%emt 0:00:08]} 4. Qxd8+ {[%emt 0:00:17]
} Kxd8 {[%emt 0:00:02]} 5. Nf3 {[%emt 0:00:39]} Nc6 {[%emt 0:02:08]} 6. Bc4 {
[%emt 0:01:12]} Ke8 {[%emt 0:01:14]} 7. Nc3 {[%emt 0:01:09]} Bb4 {[%emt 0:00:
00]} 8. Bd2 {[%emt 0:02:26]} Nge7 {[%emt 0:01:40]} 9. Nb5 {[%emt 0:04:08]} Bd6
{[%emt 0:03:19]} 10. Ng5 {[%emt 0:03:02]} Be6 {[%emt 0:08:16]} 11. Bxe6 {
[%emt 0:02:25]} fxe6 {[%emt 0:00:12]} 12. Nxe6 {[%emt 0:01:13]} Kd7 {[%emt 0:
00:00]} 13. Nxg7 {[%emt 0:05:37]} Bc5 {[%emt 0:05:03]} 14. O-O-O {[%emt 0:00:
00]} Rag8 {[%emt 0:03:11]} 15. Bh6+ {[%emt 0:11:36]} Kc8 {[%emt 0:02:25]} 16.
f3 {[%emt 0:09:39]} a6 {[%emt 0:02:21]} 17. Nc3 {[%emt 0:05:07]} Nd4 {[%emt 0:
00:00]} 18. Nd5 {[%emt 0:03:51]} Nxd5 {[%emt 0:01:56]} 19. exd5 {[%emt 0:01:08]
} Bf8 {[%emt 0:01:02]} 20. c3 {[%emt 0:04:04]} Nxf3 {[%emt 0:05:57]} 21. gxf3 {
[%emt 0:02:46]} Bxg7 {[%emt 0:00:14]} 22. Bxg7 {[%emt 0:01:08]} Rxg7 {[%emt 0:
00:00]} 23. Rhe1 {[%emt 0:05:29]} Re8 {[%emt 0:04:38]} 24. Re3 {[%emt 0:03:24]}
Kd7 {[%emt 0:04:48]} 25. Kc2 {[%emt 0:05:47]} Kd6 {[%emt 0:07:58]} 26. Rd2 {
[%emt 0:03:08]} Rge7 {[%emt 0:02:55]} 27. b3 {[%emt 0:04:24]} Rf8 {[%emt 0:00:
00]} 28. a4 {[%emt 0:01:26]} b5 {[%emt 0:03:26]} 29. a5 {[%emt 0:02:57]} Rf4 {
[%emt 0:02:21]} 30. b4 {[%emt 0:04:57]} Ref7 {[%emt 0:04:49]} 31. Rdd3 {
[%emt 0:01:24]} Rg7 {[%emt 0:02:24]} 32. Re2 {[%emt 0:01:03]} Rgf7 {[%emt 0:00:
00]} 33. Ree3 {[%emt 0:00:22]} h5 {[%emt 0:01:19]} 34. Kd2 {[%emt 0:02:38]} h4
{[%emt 0:00:31]} 35. Ke2 {[%emt 0:01:17]} h3 {[%emt 0:01:15]} 36. Re4 {[%emt 0:
00:00]} Rg7 {[%emt 0:02:14]} 37. Ke3 {[%emt 0:02:42]} Rgf7 {[%emt 0:02:47]} 38.
Rxf4 {[%emt 0:00:48]} Rxf4 {[%emt 0:00:51]} 39. Ke2 {[%emt 0:01:05]} Rf7 {
[%emt 0:01:30]} 40. Ke3 {[%emt 0:00:57]} Rf4 {[%emt 0:02:46]} 41. Rd2 {[%emt 0:
00:00]} Rc4 {[%emt 0:32:15]} 42. Rd3 {[%emt 0:00:00]} Rf4 {[%emt 0:00:00]} 43.
Ke2 {[%emt 0:00:00]} Rf7 {[%emt 0:00:00]} 44. Ke3 {[%emt 0:00:00]} Rf4 {
[%emt 0:00:00]} 45. Kf2 {[%emt 0:00:00]} e4 {[%emt 0:00:00]} 46. Ke3 {[%emt 0:
00:00]} exd3 {[%emt 0:00:00]} 0-1

[Event "44th Chess Olympiad Open 2022"]
[Site "Chennai"]
[Date "2022.08.05"]
[Round "7.85"]
[White "Veer Gandhi"]
[Black "Conhoff, David"]
[Result "1-0"]
[WhiteElo "1545"]
[BlackElo "1460"]
[Annotator "NA"]
[PlyCount "63"]
[EventDate "2022.??.??"]
[TimeControl "60"]

1. e4 {[%emt 0:01:10]} e5 {[%emt 0:00:15]} 2. Nf3 {[%emt 0:00:06]} Nc6 {
[%emt 0:00:09]} 3. Bc4 {[%emt 0:00:32]} Bc5 {[%emt 0:01:43]} 4. d3 {[%emt 0:00:
00]} Nf6 {[%emt 0:05:16]} 5. Nc3 {[%emt 0:02:34]} O-O {[%emt 0:03:02]} 6. Bg5 {
[%emt 0:01:08]} h6 {[%emt 0:07:22]} 7. Bh4 {[%emt 0:04:01]} Bb4 {[%emt 0:17:18]
} 8. a3 {[%emt 0:04:31]} Bxc3+ {[%emt 0:03:44]} 9. bxc3 {[%emt 0:00:10]} g5 {
[%emt 0:07:01]} 10. Bg3 {[%emt 0:19:21]} Re8 {[%emt 0:05:35]} 11. Qe2 {[%emt 0:
00:00]} d5 {[%emt 0:06:39]} 12. Ba2 {[%emt 0:00:08]} d4 {[%emt 0:13:16]} 13.
Qd2 {[%emt 0:13:55]} a5 {[%emt 0:07:07]} 14. h3 {[%emt 0:00:54]} a4 {[%emt 0:
00:00]} 15. Nh2 {[%emt 0:02:31]} Kg7 {[%emt 0:04:40]} 16. f3 {[%emt 0:00:52]}
Qd6 {[%emt 0:03:31]} 17. Bc4 {[%emt 0:04:02]} Na7 {[%emt 0:01:04]} 18. cxd4 {
[%emt 0:00:37]} Qxd4 {[%emt 0:01:35]} 19. c3 {[%emt 0:00:14]} Qd6 {[%emt 0:00:
00]} 20. d4 {[%emt 0:01:27]} Nc6 {[%emt 0:04:25]} 21. dxe5 {[%emt 0:01:43]}
Qxd2+ {[%emt 0:00:32]} 22. Kxd2 {[%emt 0:00:08]} Nxe5 {[%emt 0:00:18]} 23. Ba2
{[%emt 0:00:41]} c5 {[%emt 0:02:46]} 24. Ng4 {[%emt 0:00:34]} Nexg4 {[%emt 0:
00:00]} 25. hxg4 {[%emt 0:00:18]} b5 {[%emt 0:00:11]} 26. Rab1 {[%emt 0:00:40]}
Rb8 {[%emt 0:00:21]} 27. Bxb8 {[%emt 0:00:11]} Ba6 {[%emt 0:00:16]} 28. Bg3 {
[%emt 0:00:53]} Rd8+ {[%emt 0:00:16]} 29. Ke3 {[%emt 0:01:39]} Ng8 {[%emt 0:00:
00]} 30. Rhd1 {[%emt 0:00:23]} Re8 {[%emt 0:00:06]} 31. Rd7 {[%emt 0:00:44]}
Kg6 {[%emt 0:00:15]} 32. Bxf7+ {[%emt 0:00:14]} 1-0

[Event "44th Chess Olympiad Open 2022"]
[Site "Chennai"]
[Date "2022.08.05"]
[Round "7.85"]
[White "Hair, Justin M"]
[Black "Mdoe, Yusuf"]
[Result "0-1"]
[WhiteElo "1505"]
[BlackElo "1722"]
[Annotator "NA"]
[PlyCount "86"]
[EventDate "2022.??.??"]
[TimeControl "60"]

1. e4 {[%emt 0:00:11]} c6 {[%emt 0:00:32]} 2. d4 {[%emt 0:00:21]} d5 {[%emt 0:
00:00]} 3. Nc3 {[%emt 0:01:11]} a6 {[%emt 0:01:06]} 4. Bf4 {[%emt 0:01:32]} g6
{[%emt 0:00:56]} 5. Bd3 {[%emt 0:01:26]} Bg7 {[%emt 0:00:30]} 6. Nge2 {[%emt 0:
00:00]} Nf6 {[%emt 0:00:49]} 7. Qd2 {[%emt 0:01:10]} dxe4 {[%emt 0:06:27]} 8.
Nxe4 {[%emt 0:01:36]} Nxe4 {[%emt 0:01:07]} 9. Bxe4 {[%emt 0:00:26]} Nd7 {
[%emt 0:00:46]} 10. Bh6 {[%emt 0:01:50]} Bxh6 {[%emt 0:01:29]} 11. Qxh6 {
[%emt 0:03:37]} Nf6 {[%emt 0:00:13]} 12. Bf3 {[%emt 0:02:38]} Be6 {[%emt 0:00:
00]} 13. h4 {[%emt 0:02:31]} Qa5+ {[%emt 0:02:05]} 14. c3 {[%emt 0:02:36]} Qb5
{[%emt 0:02:54]} 15. Qd2 {[%emt 0:02:12]} h5 {[%emt 0:02:02]} 16. Nf4 {[%emt 0:
00:00]} Bg4 {[%emt 0:01:21]} 17. Bxg4 {[%emt 0:05:52]} hxg4 {[%emt 0:00:24]}
18. g3 {[%emt 0:01:10]} g5 {[%emt 0:00:28]} 19. Ng2 {[%emt 0:03:09]} Qd5 {
[%emt 0:09:05]} 20. O-O {[%emt 0:04:44]} Ne4 {[%emt 0:00:57]} 21. Qe2 {[%emt 0:
00:00]} f5 {[%emt 0:00:30]} 22. Rfe1 {[%emt 0:07:50]} Qd7 {[%emt 0:02:42]} 23.
hxg5 {[%emt 0:05:06]} O-O-O {[%emt 0:03:04]} 24. Nh4 {[%emt 0:07:19]} e6 {
[%emt 0:01:22]} 25. g6 {[%emt 0:05:15]} Qg7 {[%emt 0:02:28]} 26. Rad1 {[%emt 0:
00:00]} Rh5 {[%emt 0:03:35]} 27. Qc4 {[%emt 0:02:03]} Qf6 {[%emt 0:01:38]} 28.
Re3 {[%emt 0:02:51]} Kb8 {[%emt 0:03:35]} 29. Rde1 {[%emt 0:02:14]} Rdh8 {
[%emt 0:02:59]} 30. Kf1 {[%emt 0:06:16]} Rxh4 {[%emt 0:01:17]} 31. gxh4 {
[%emt 0:00:44]} Qxh4 {[%emt 0:00:46]} 32. Rxe4 {[%emt 0:03:50]} Qh1+ {[%emt 0:
00:00]} 33. Ke2 {[%emt 0:01:08]} Qxe4+ {[%emt 0:00:09]} 34. Kd1 {[%emt 0:00:12]
} Rh1 {[%emt 0:00:46]} 35. Qe2 {[%emt 0:02:57]} Qb1+ {[%emt 0:01:02]} 36. Kd2 {
[%emt 0:01:24]} Qxb2+ {[%emt 0:00:51]} 37. Kd1 {[%emt 0:00:54]} Qb1+ {[%emt 0:
00:00]} 38. Kd2 {[%emt 0:00:46]} Qxa2+ {[%emt 0:02:10]} 39. Ke3 {[%emt 0:00:29]
} Rxe1 {[%emt 0:12:06]} 40. Qxe1 {[%emt 0:00:17]} e5 {[%emt 0:01:37]} 41. Qh1 {
[%emt 0:33:49]} f4+ {[%emt 0:30:39]} 42. Kd3 {[%emt 0:02:06]} e4+ {[%emt 0:00:
00]} 43. Qxe4 {[%emt 0:00:54]} Qb1+ {[%emt 0:00:11]} 0-1

[Event "44th Chess Olympiad Open 2022"]
[Site "Chennai"]
[Date "2022.08.05"]
[Round "7.86"]
[White "Chinasamy, Devarajen"]
[Black "Senglek, Khonsavanh"]
[Result "0-1"]
[WhiteElo "1970"]
[BlackElo "1253"]
[Annotator "NA RC"]
[PlyCount "68"]
[EventDate "2022.??.??"]
[TimeControl "60"]

1. d4 {[%emt 0:00:05]} e6 {[%emt 0:00:42]} 2. Nc3 {[%emt 0:00:15]} d5 {[%emt 0:
00:00]} 3. Bf4 {[%emt 0:00:09]} Bd6 {[%emt 0:00:34]} 4. Bg3 {[%emt 0:01:02]} a6
{[%emt 0:00:27]} 5. e3 {[%emt 0:00:15]} Nf6 {[%emt 0:00:29]} 6. Nf3 {[%emt 0:
00:00]} O-O {[%emt 0:00:41]} 7. Bd3 {[%emt 0:00:28]} c5 {[%emt 0:00:43]} 8.
dxc5 {[%emt 0:00:24]} Bxc5 {[%emt 0:00:35]} 9. O-O {[%emt 0:07:24]} Nc6 {
[%emt 0:00:04]} 10. a3 {[%emt 0:00:08]} Bd6 {[%emt 0:00:12]} 11. Bh4 {[%emt 0:
00:00]} Be7 {[%emt 0:00:27]} 12. Bg3 {[%emt 0:00:18]} Qb6 {[%emt 0:04:01]} 13.
Qd2 {[%emt 0:01:53]} Nh5 {[%emt 0:00:28]} 14. Bh4 {[%emt 0:01:10]} Qd8 {
[%emt 0:01:31]} 15. Bxe7 {[%emt 0:00:26]} Qxe7 {[%emt 0:00:37]} 16. Na4 {
[%emt 0:05:47]} Qd8 {[%emt 0:04:22]} 17. b4 {[%emt 0:01:18]} Nf6 {[%emt 0:00:
00]} 18. Rad1 {[%emt 0:06:59]} Na7 {[%emt 0:01:16]} 19. Qe2 {[%emt 0:01:33]}
Bd7 {[%emt 0:00:45]} 20. Nc5 {[%emt 0:00:21]} b6 {[%emt 0:01:34]} 21. Nxa6 {
[%emt 0:03:16]} Qc8 {[%emt 0:01:26]} 22. Ne5 {[%emt 0:04:26]} Ba4 {[%emt 0:00:
00]} 23. Rc1 {[%emt 0:06:17]} Qc3 {[%emt 0:03:12]} 24. Ra1 {[%emt 0:01:14]}
Qxe5 {[%emt 0:01:08]} 25. b5 {[%emt 0:01:34]} Ne4 {[%emt 0:01:39]} 26. f4 {
[%emt 0:06:50]} Qd6 {[%emt 0:04:09]} 27. Bxe4 {[%emt 0:00:30]} dxe4 {[%emt 0:
00:00]} 28. c4 {[%emt 0:00:08]} Qd3 {[%emt 0:01:07]} 29. Rf2 {[%emt 0:00:51]}
Bb3 {[%emt 0:02:14]} 30. Rc1 {[%emt 0:06:56]} Rfc8 {[%emt 0:00:30]} 31. Nb4 {
[%emt 0:01:10]} Qxe2 {[%emt 0:00:40]} 32. Rxe2 {[%emt 0:00:06]} Nxb5 {[%emt 0:
00:00]} 33. Rb2 {[%emt 0:03:41]} Bxc4 {[%emt 0:01:28]} 34. Nc2 {[%emt 0:01:14]}
Bd3 {[%emt 0:01:01]} 0-1

[Event "44th Chess Olympiad Open 2022"]
[Site "Chennai"]
[Date "2022.08.05"]
[Round "7.87"]
[White "Bongo Akanga Ndjila, Barthelemy"]
[Black "Dalliah, Joseph"]
[Result "1-0"]
[WhiteElo "1803"]
[BlackElo "1920"]
[Annotator "NA RC"]
[PlyCount "77"]
[EventDate "2022.??.??"]
[TimeControl "60"]

1. d4 {[%emt 0:00:06]} d5 {[%emt 0:00:36]} 2. c4 {[%emt 0:00:03]} c6 {[%emt 0:
00:00]} 3. Nc3 {[%emt 0:00:06]} Nf6 {[%emt 0:00:32]} 4. e3 {[%emt 0:00:02]} e6
{[%emt 0:00:55]} 5. Qc2 {[%emt 0:00:06]} g6 {[%emt 0:00:21]} 6. Nf3 {[%emt 0:
00:00]} Bg7 {[%emt 0:00:42]} 7. e4 {[%emt 0:01:23]} dxe4 {[%emt 0:00:31]} 8.
Nxe4 {[%emt 0:00:09]} Nxe4 {[%emt 0:00:58]} 9. Qxe4 {[%emt 0:00:25]} O-O {
[%emt 0:00:32]} 10. Bd2 {[%emt 0:01:01]} Nd7 {[%emt 0:01:44]} 11. O-O-O {
[%emt 0:08:52]} a5 {[%emt 0:00:22]} 12. h4 {[%emt 0:00:09]} Nf6 {[%emt 0:00:49]
} 13. Qf4 {[%emt 0:06:55]} h5 {[%emt 0:01:52]} 14. Ne5 {[%emt 0:03:14]} Nd7 {
[%emt 0:00:43]} 15. Nxd7 {[%emt 0:03:48]} Bxd7 {[%emt 0:00:13]} 16. f3 {
[%emt 0:02:05]} Qf6 {[%emt 0:05:26]} 17. Be3 {[%emt 0:00:00]} Qxf4 {[%emt 0:00:
00]} 18. Bxf4 {[%emt 0:00:08]} b5 {[%emt 0:00:56]} 19. g4 {[%emt 0:00:00]} bxc4
{[%emt 0:00:43]} 20. Bxc4 {[%emt 0:00:00]} hxg4 {[%emt 0:02:27]} 21. fxg4 {
[%emt 0:00:00]} e5 {[%emt 0:02:58]} 22. dxe5 {[%emt 0:05:15]} Bxg4 {[%emt 0:00:
00]} 23. Rd6 {[%emt 0:00:10]} Bf3 {[%emt 0:07:20]} 24. Rh3 {[%emt 0:02:17]} Be4
{[%emt 0:04:25]} 25. h5 {[%emt 0:00:56]} Rfd8 {[%emt 0:00:23]} 26. hxg6 {
[%emt 0:01:54]} Rxd6 {[%emt 0:03:54]} 27. Bxf7+ {[%emt 0:01:01]} Kf8 {[%emt 0:
00:00]} 28. exd6 {[%emt 0:00:02]} Rd8 {[%emt 0:01:48]} 29. Ra3 {[%emt 0:00:39]}
Ra8 {[%emt 0:03:57]} 30. Re3 {[%emt 0:00:39]} Bf5 {[%emt 0:00:58]} 31. Rb3 {
[%emt 0:01:12]} Bf6 {[%emt 0:00:12]} 32. Bh6+ {[%emt 0:00:40]} Bg7 {[%emt 0:00:
00]} 33. Bg5 {[%emt 0:00:22]} Be5 {[%emt 0:02:49]} 34. Bh6+ {[%emt 0:07:11]}
Bg7 {[%emt 0:03:18]} 35. Bf4 {[%emt 0:04:46]} Bf6 {[%emt 0:00:43]} 36. Rb6 {
[%emt 0:00:36]} Rc8 {[%emt 0:02:20]} 37. Rb7 {[%emt 0:01:21]} Bg7 {[%emt 0:00:
00]} 38. d7 {[%emt 0:00:17]} Rd8 {[%emt 0:05:21]} 39. Bd6# {[%emt 0:00:30]} 1-0

[Event "44th Chess Olympiad Open 2022"]
[Site "Chennai"]
[Date "2022.08.05"]
[Round "7.87"]
[White "Garber, Ousainou"]
[Black "Bongo Ngombele, Tary"]
[Result "0-1"]
[WhiteElo "1772"]
[BlackElo "1688"]
[Annotator "NA RC"]
[PlyCount "112"]
[EventDate "2022.??.??"]
[TimeControl "60"]

1. e4 {[%emt 0:00:08]} e5 {[%emt 0:00:05]} 2. Nf3 {[%emt 0:00:06]} Nc6 {
[%emt 0:00:05]} 3. Nc3 {[%emt 0:00:50]} Nf6 {[%emt 0:00:09]} 4. h3 {[%emt 0:00:
00]} Bb4 {[%emt 0:00:07]} 5. d3 {[%emt 0:00:56]} h6 {[%emt 0:00:31]} 6. a3 {
[%emt 0:00:11]} Be7 {[%emt 0:01:03]} 7. Be2 {[%emt 0:00:43]} d5 {[%emt 0:00:41]
} 8. exd5 {[%emt 0:01:21]} Nxd5 {[%emt 0:00:07]} 9. Nxd5 {[%emt 0:01:28]} Qxd5
{[%emt 0:00:09]} 10. O-O {[%emt 0:01:38]} O-O {[%emt 0:00:24]} 11. b4 {[%emt 0:
00:00]} a5 {[%emt 0:00:33]} 12. c4 {[%emt 0:00:28]} Qd6 {[%emt 0:01:26]} 13. b5
{[%emt 0:00:54]} Nd4 {[%emt 0:00:14]} 14. Nxd4 {[%emt 0:00:40]} Qxd4 {[%emt 0:
00:00]} 15. Be3 {[%emt 0:00:39]} Qd6 {[%emt 0:00:53]} 16. c5 {[%emt 0:02:02]}
Qg6 {[%emt 0:01:56]} 17. Bh5 {[%emt 0:00:53]} Qe6 {[%emt 0:02:01]} 18. Re1 {
[%emt 0:01:21]} Rd8 {[%emt 0:00:31]} 19. Rc1 {[%emt 0:01:32]} Qd5 {[%emt 0:00:
00]} 20. Be2 {[%emt 0:03:01]} f5 {[%emt 0:01:52]} 21. f3 {[%emt 0:03:02]} Bh4 {
[%emt 0:02:07]} 22. Rf1 {[%emt 0:01:23]} f4 {[%emt 0:00:13]} 23. d4 {[%emt 0:
00:00]} Qf7 {[%emt 0:00:54]} 24. Bc4 {[%emt 0:00:53]} Be6 {[%emt 0:00:06]} 25.
Bxe6 {[%emt 0:03:10]} Qxe6 {[%emt 0:00:13]} 26. Bf2 {[%emt 0:00:10]} Bxf2+ {
[%emt 0:00:22]} 27. Rxf2 {[%emt 0:00:51]} Rxd4 {[%emt 0:00:34]} 28. Qc2 {
[%emt 0:05:16]} a4 {[%emt 0:02:20]} 29. Re2 {[%emt 0:01:47]} Qb3 {[%emt 0:00:
00]} 30. Qg6 {[%emt 0:03:01]} Rd1+ {[%emt 0:02:09]} 31. Rxd1 {[%emt 0:06:14]}
Qxd1+ {[%emt 0:00:04]} 32. Kf2 {[%emt 0:00:42]} Qd4+ {[%emt 0:01:52]} 33. Kf1 {
[%emt 0:00:23]} Qxc5 {[%emt 0:04:39]} 34. Qe6+ {[%emt 0:00:52]} Kh8 {[%emt 0:
00:00]} 35. Rxe5 {[%emt 0:00:55]} Qxa3 {[%emt 0:01:46]} 36. Kg1 {[%emt 0:01:24]
} Qd6 {[%emt 0:00:51]} 37. Qf5 {[%emt 0:01:08]} a3 {[%emt 0:00:24]} 38. Re1 {
[%emt 0:06:09]} a2 {[%emt 0:00:39]} 39. Kh2 {[%emt 0:03:47]} a1=Q {[%emt 0:00:
00]} 40. Rxa1 {[%emt 0:02:48]} Rxa1 {[%emt 0:00:16]} 41. Qc8+ {[%emt 0:00:26]}
Kh7 {[%emt 0:31:08]} 42. Qxb7 {[%emt 0:31:03]} Qg6 {[%emt 0:00:08]} 43. Qe4 {
[%emt 0:02:41]} Qxe4 {[%emt 0:00:14]} 44. fxe4 {[%emt 0:00:23]} h5 {[%emt 0:00:
00]} 45. g4 {[%emt 0:01:28]} Kh6 {[%emt 0:00:31]} 46. Kg2 {[%emt 0:00:07]} hxg4
{[%emt 0:00:08]} 47. hxg4 {[%emt 0:00:26]} Kg5 {[%emt 0:00:06]} 48. e5 {
[%emt 0:00:45]} Kxg4 {[%emt 0:00:34]} 49. Kf2 {[%emt 0:00:09]} Ra5 {[%emt 0:00:
00]} 50. e6 {[%emt 0:00:24]} Rxb5 {[%emt 0:00:06]} 51. e7 {[%emt 0:00:29]} Re5
{[%emt 0:00:07]} 52. e8=Q Rxe8 53. Kg2 {[%emt 0:00:22]} Re2+ {[%emt 0:01:08]}
54. Kf1 {[%emt 0:00:07]} Kf3 {[%emt 0:00:21]} 55. Kg1 {[%emt 0:00:47]} Ra2 {
[%emt 0:00:12]} 56. Kh1 {[%emt 0:02:01]} Kg3 {[%emt 0:00:38]} 0-1